bitfinex-derivatives/quotes_ETHF0:USTF0_20241230
["timestamp","ask_amount","ask_price","bid_price","bid_amount"]
[1735520651737,3.2078,3389.9,3389.2,0.29563]
[1735520651932,3.2078,3389.9,3389.1,0.91263]
[1735520651933,0.2956,3389.5,3389.1,0.91263]
[1735520652136,3.2078,3389.9,3389.1,0.617]
[1735520652436,0.29563,3389.2,3389.1,0.617]
[1735520652639,0.29564,3389.0,3388.9,2.55713758]
[1735520653732,5.29564,3389.0,3388.9,2.55713758]
[1735520653933,0.29564,3389.0,3388.9,2.55713758]
[1735520654132,0.29564,3389.0,3388.0,0.29572]
[1735520654133,0.29569,3388.5,3388.0,0.29572]
[1735520654338,3.2078,3388.4,3388.0,0.29572]
[1735520655137,6.05086441,3388.8,3387.9,3.2078]
[1735520655441,3.2078,3388.4,3388.1,0.29572]
[1735520655645,3.2078,3388.4,3388.0,0.29573]
[1735520655845,3.2078,3388.4,3387.9,3.2078]
[1735520656037,3.5035,3388.4,3387.9,3.50353]
[1735520656242,3.2078,3388.4,3387.9,3.2078]
[1735520656734,0.29571,3388.2,3387.9,3.2078]
[1735520656942,6.05086441,3388.4,3387.9,3.2078]
[1735520657236,6.05086441,3388.4,3387.4,4.46]
[1735520657636,2.84306441,3388.0,3387.4,4.46]
[1735520657836,3.2078,3387.5,3387.4,1.2522]
[1735520658342,3.2078,3387.5,3387.4,0.6064]
[1735520658343,3.50357,3387.5,3387.4,0.6064]
[1735520658839,3.2078,3387.5,3387.1,40.8]
[1735520659038,0.2958,3387.3,3386.8,0.616]
[1735520659240,0.2958,3387.2,3386.8,0.616]
[1735520659439,3.2078,3387.5,3386.8,0.91183]
[1735520659644,0.2958,3387.2,3386.8,0.616]
[1735520660141,0.29579,3387.3,3386.8,0.91183]
[1735520660843,3.2078,3387.5,3387.4,0.29578]
[1735520661044,3.2078,3387.5,3387.3,0.29578]
[1735520661239,3.2078,3387.5,3387.4,0.29578]
[1735520661437,0.29573,3388.1,3387.4,40.8]
[1735520661438,3.2078,3388.1,3387.4,40.8]
[1735520662139,3.2078,3388.1,3387.6,0.29576]
[1735520662340,3.50353,3388.1,3387.6,0.29576]
[1735520662535,3.50353,3388.1,3387.7,1.53185]
[1735520662740,3.2078,3388.1,3387.7,1.2361]
[1735520662941,0.29574,3388.0,3387.7,1.2361]
[1735520663240,2.84306441,3388.0,3387.4,40.8]
[1735520663450,2.84306441,3388.0,3387.2,0.2958]
[1735520663655,0.29576,3387.7,3387.0,0.6498]
[1735520663858,3.50356,3387.7,3387.3,0.29579]
[1735520664044,0.29575,3387.8,3387.4,0.29578]
[1735520664358,0.29577,3387.6,3387.2,0.2958]
[1735520664557,0.29577,3387.6,3387.1,40.8]
[1735520664758,0.29577,3387.6,3387.2,0.29579]
[1735520665655,0.29576,3387.6,3387.0,0.6498]
[1735520665953,3.2078,3387.3,3387.0,0.6498]
[1735520666158,3.2078,3387.3,3387.0,41.4498]
[1735520666356,0.29581,3387.1,3387.0,0.6498]
[1735520667058,3.2078,3387.3,3387.0,0.6498]
[1735520667252,0.29581,3387.2,3387.0,0.6498]
[1735520668353,1.93148,3388.3,3387.0,0.6498]
[1735520668354,3.2078,3387.9,3387.7,0.29575]
[1735520668564,3.2078,3387.9,3387.1,3.2078]
[1735520668752,0.29578,3387.5,3387.1,3.5036]
[1735520669059,3.2078,3387.9,3387.2,40.8]
[1735520669255,0.29577,3387.6,3387.2,41.09579]
[1735520669453,0.29578,3387.5,3387.2,41.09579]
[1735520669654,0.29579,3387.4,3387.0,0.94561]
[1735520670257,0.2958,3387.3,3387.0,0.94561]
[1735520670461,0.29579,3387.3,3387.0,0.94561]
[1735520670654,3.2078,3387.9,3387.0,0.6498]
[1735520670854,3.2078,3387.9,3387.7,0.29576]
[1735520671161,3.50354,3387.9,3387.8,0.6181]
[1735520671556,3.2078,3387.9,3387.1,3.2078]
[1735520671754,3.2078,3387.9,3387.3,0.29579]
[1735520671955,0.29577,3387.6,3387.3,0.29579]
[1735520672262,0.29578,3387.5,3387.2,0.6181]
[1735520672464,0.29578,3387.5,3387.2,0.9139]
[1735520672860,3.2078,3387.9,3387.2,0.6181]
[1735520673060,0.29579,3387.4,3387.2,0.6181]
[1735520673260,3.2078,3387.5,3387.2,0.6181]
[1735520673462,0.29579,3387.3,3387.2,0.6181]
[1735520673656,0.29578,3387.4,3386.9,0.88212]
[1735520673862,0.2958,3387.2,3386.9,0.88212]
[1735520674161,3.50358,3387.5,3386.9,0.5863]
[1735520674354,3.2078,3387.9,3386.9,0.5863]
[1735520674558,3.2078,3387.9,3387.4,0.29578]
[1735520674559,0.29576,3387.7,3387.4,0.29578]
[1735520674955,3.2078,3387.9,3387.2,0.29579]
[1735520674956,0.29577,3387.6,3387.2,0.29579]
[1735520675155,0.29577,3387.5,3387.2,0.29579]
[1735520675353,0.29576,3387.7,3387.4,0.29578]
[1735520675665,3.2078,3387.9,3387.1,3.2078]
[1735520675955,0.29579,3387.3,3387.0,0.29581]
[1735520676160,0.2958,3387.3,3387.0,0.29581]
[1735520676359,0.29579,3387.4,3387.1,0.29581]
[1735520676560,0.29579,3387.4,3386.9,0.5863]
[1735520676561,0.2958,3387.2,3386.9,0.88212]
[1735520676761,3.2078,3387.5,3386.9,0.5863]
[1735520677150,2.84306441,3387.2,3386.7,3.2078]
[1735520677558,0.29583,3386.9,3386.7,3.2078]
[1735520677965,2.84306441,3387.2,3386.7,3.2078]
[1735520678166,0.29583,3386.9,3386.7,3.2078]
[1735520678875,0.29583,3387.0,3386.7,3.2078]
[1735520679056,0.29583,3387.0,3386.7,3.50364]
[1735520679665,2.84306441,3387.2,3386.7,3.2078]
[1735520679861,0.5733,3387.4,3387.2,0.2958]
[1735520680058,3.2078,3387.5,3386.8,0.578]
[1735520680259,0.29579,3387.4,3387.1,0.2958]
[1735520680466,3.2078,3387.5,3386.9,0.5864]
[1735520680765,3.50358,3387.5,3387.2,0.2958]
[1735520680966,0.29576,3387.7,3387.1,3.2078]
[1735520681161,0.29576,3387.7,3387.4,0.29578]
[1735520682264,0.29577,3387.6,3387.3,0.29578]
[1735520682563,0.29578,3387.5,3387.2,0.2958]
[1735520682762,3.2078,3387.5,3386.7,3.2078]
[1735520682970,0.2958,3387.2,3386.7,3.2078]
[1735520683174,3.2078,3387.5,3386.7,3.2078]
[1735520683563,3.2078,3387.5,3386.9,0.29582]
[1735520683763,3.2078,3387.5,3386.8,0.29583]
[1735520683764,0.29578,3387.4,3386.8,0.29583]
[1735520683960,3.2078,3387.5,3386.7,3.2078]
[1735520684163,3.2078,3387.5,3386.9,0.29583]
[1735520684164,0.29581,3387.1,3386.9,0.29583]
[1735520685074,0.29583,3386.9,3386.7,3.50364]
[1735520685270,0.29583,3386.8,3386.7,3.2078]
[1735520685571,0.29583,3386.9,3386.7,3.2078]
[1735520685872,0.29583,3386.9,3386.7,3.50364]
[1735520687066,0.29583,3387.0,3386.7,3.2078]
[1735520687266,0.29581,3387.1,3386.7,3.2078]
[1735520687572,0.29581,3387.1,3386.9,0.29582]
[1735520688270,3.2078,3387.0,3386.4,0.61685623]
[1735520688471,0.29583,3386.9,3386.7,0.29584]
[1735520688667,3.2078,3387.0,3386.7,0.29584]
[1735520688872,3.2078,3387.0,3386.4,0.61685623]
[1735520689083,3.2078,3387.0,3386.8,0.29583]
[1735520689571,3.50362,3387.0,3386.8,0.29583]
[1735520690174,3.50362,3387.0,3386.4,0.61685623]
[1735520690574,3.50362,3387.0,3386.8,0.29583]
[1735520690873,0.29582,3387.0,3386.8,0.29583]
[1735520691074,3.7962,3387.4,3386.8,0.29583]
[1735520691075,0.29582,3387.1,3386.8,0.29583]
[1735520691270,0.2958,3387.2,3386.9,0.29582]
[1735520691578,0.2958,3387.2,3386.4,0.61685623]
[1735520691769,0.2958,3387.2,3387.0,0.29581]
[1735520691971,0.29581,3387.1,3386.9,0.29582]
[1735520692173,3.7962,3387.4,3386.9,0.29582]
[1735520692771,0.29581,3387.2,3386.9,0.29582]
[1735520693175,0.29581,3387.2,3386.4,0.61685623]
[1735520693176,6.05086441,3387.0,3386.4,0.00745623]
[1735520693379,6.34672441,3386.5,3386.4,0.00745623]
[1735520695078,11.05086441,3386.5,3385.7,3.2078]
[1735520695273,0.29592,3385.8,3385.7,3.2078]
[1735520695670,3.2078,3386.0,3385.2,3.2078]
[1735520695879,3.94758,3386.0,3385.2,3.2078]
[1735520696178,0.29596,3385.4,3385.2,3.2078]
[1735520696601,0.29594,3385.6,3385.2,3.50377]
[1735520696776,0.29594,3385.6,3385.2,3.2078]
[1735520696978,3.2078,3386.0,3385.2,3.2078]
[1735520697175,3.2078,3386.0,3385.3,0.29597]
[1735520697370,0.29592,3385.8,3385.2,3.2078]
[1735520697570,3.2078,3386.0,3385.4,0.29595]
[1735520697873,0.29592,3385.9,3385.2,3.2078]
[1735520698377,3.2078,3386.0,3385.2,3.2078]
[1735520698674,3.2078,3386.0,3385.9,0.29591]
[1735520698881,1.35500304,3386.2,3386.1,0.2959]
[1735520699074,3.42805783,3386.4,3386.3,0.29588]
[1735520699279,3.42805783,3386.4,3386.3,3.50368]
[1735520699581,3.42805783,3386.4,3386.3,44.30368]
[1735520699780,3.42805783,3386.4,3386.3,41.09588]
[1735520700280,3.2078,3387.0,3386.3,40.8]
[1735520700479,0.29587,3386.5,3386.3,41.09587]
[1735520700676,2.84306441,3386.9,3386.3,40.8]
[1735520700875,3.2078,3387.0,3386.4,3.2078]
[1735520701081,3.2078,3387.0,3386.9,0.29583]
[1735520701780,3.42805783,3387.6,3387.3,0.29579]
[1735520701984,3.42805783,3387.6,3387.5,0.29577]
[1735520702573,4.63701452,3387.9,3387.8,0.29575]
[1735520703881,6.05086441,3388.8,3387.7,3.2078]
[1735520704283,0.29574,3387.9,3387.7,3.2078]
[1735520704788,0.29573,3388.0,3387.7,3.50355]
[1735520705386,0.29573,3388.1,3387.7,3.50355]
[1735520705678,0.89021,3388.3,3387.9,0.29573]
[1735520705890,0.5877,3388.0,3387.7,3.2078]
[1735520706278,0.29574,3387.9,3387.7,3.2078]
[1735520706478,0.29575,3387.8,3387.7,3.2078]
[1735520706877,0.29575,3387.8,3386.9,6.88692488]
[1735520706878,3.2078,3387.8,3386.9,6.88692488]
[1735520707086,0.29581,3387.1,3386.9,6.88692488]
[1735520707491,0.29582,3387.0,3386.9,6.88692488]
[1735520707790,0.89572,3387.0,3386.9,6.88692488]
[1735520707983,9.10352,3387.0,3386.9,2.45682488]
[1735520708184,0.29588,3386.4,3386.1,3.2078]
[1735520708384,2.84306441,3386.6,3386.1,3.2078]
[1735520708580,2.84306441,3386.6,3385.9,9.18256651]
[1735520708581,0.29588,3386.3,3385.9,9.47847651]
[1735520708784,6.05086441,3386.6,3385.9,9.18256651]
[1735520708785,0.29589,3386.2,3385.9,9.18256651]
[1735520709000,0.29586,3386.5,3385.9,9.18256651]
[1735520709190,0.29586,3386.5,3386.0,0.2959]
[1735520709387,0.29589,3386.2,3385.9,9.47847651]
[1735520709584,0.29589,3386.2,3385.6,15.30050814]
[1735520709585,6.05086441,3386.6,3385.7,0.29593]
[1735520709789,6.05086441,3386.6,3385.6,3.8223]
[1735520709790,0.29592,3385.9,3385.6,3.2078]
[1735520709986,2.84306441,3386.2,3385.6,3.2078]
[1735520710387,0.29591,3386.0,3385.6,3.50373]
[1735520710889,0.29591,3386.0,3385.6,3.2078]
[1735520711185,0.29591,3386.0,3385.6,3.50374]
[1735520711382,2.84306441,3386.2,3385.6,3.2078]
[1735520711583,0.29593,3385.8,3385.6,3.2078]
[1735520711786,0.29593,3385.7,3385.3,0.29596]
[1735520711985,3.2078,3386.0,3385.3,0.29596]
[1735520712192,0.29594,3385.6,3385.3,0.29596]
[1735520712388,3.2078,3386.0,3385.2,3.2078]
[1735520712585,2.84306441,3385.8,3385.0,0.6145]
[1735520712785,3.2078,3386.0,3385.4,3.2078]
[1735520713098,0.29594,3385.7,3385.1,0.29598]
[1735520713287,0.29596,3385.4,3385.0,0.91049]
[1735520713495,0.29596,3385.4,3384.2,0.74016]
[1735520713496,2.84306441,3385.4,3384.5,3.2078]
[1735520713688,3.2078,3385.2,3384.5,3.2078]
[1735520713993,0.29598,3385.1,3384.7,0.29601]
[1735520714291,3.2078,3385.2,3384.5,3.2078]
[1735520714993,0.29601,3384.9,3384.5,3.2078]
[1735520715583,0.29601,3384.9,3384.5,3.50383]
[1735520715796,0.91059,3385.1,3384.7,0.29602]
[1735520716188,0.29599,3385.0,3384.6,0.29602]
[1735520716387,0.6146,3385.1,3384.6,0.29602]
[1735520716609,0.29599,3385.0,3384.6,0.29603]
[1735520716988,0.6146,3385.1,3384.3,1.2619]
[1735520717292,3.2078,3385.2,3385.1,0.29598]
[1735520717491,7.84481452,3386.2,3386.0,0.2959]
[1735520717688,7.84481452,3386.2,3385.2,1.93314]
[1735520717886,8.14070452,3386.2,3385.7,0.29593]
[1735520718091,7.84481452,3386.2,3385.7,0.29593]
[1735520718292,7.84481452,3386.2,3385.3,40.8]
[1735520718590,7.84481452,3386.2,3386.0,0.2959]
[1735520718887,3.50369,3386.2,3385.7,3.50373]
[1735520719089,3.2078,3386.2,3385.7,3.2078]
[1735520719292,3.2078,3386.2,3385.3,44.0078]
[1735520719500,3.2078,3386.2,3385.3,3.2078]
[1735520719791,0.29592,3385.9,3385.5,0.29595]
[1735520719986,3.8369,3386.2,3385.3,3.2078]
[1735520720186,0.6216,3385.8,3385.3,3.2078]
[1735520720593,0.29596,3385.5,3385.3,3.2078]
[1735520721294,0.29595,3385.5,3385.3,3.2078]
[1735520721597,0.29596,3385.4,3385.3,3.2078]
[1735520721888,0.29596,3385.4,3384.8,3.2078]
[1735520722090,0.29596,3385.4,3385.1,0.29598]
[1735520722291,0.29596,3385.4,3385.0,0.29599]
[1735520722695,3.2078,3385.6,3385.5,0.29595]
[1735520723092,3.2078,3385.6,3384.9,1.2116]
[1735520723295,3.50374,3385.6,3384.9,1.2116]
[1735520723596,3.2078,3385.6,3385.3,0.29596]
[1735520723999,3.2078,3385.6,3384.9,1.2116]
[1735520724401,0.29597,3385.3,3385.0,0.29599]
[1735520725694,3.2078,3385.2,3384.7,0.6202]
[1735520725899,0.29601,3384.8,3384.5,0.29603]
[1735520726096,3.2078,3385.2,3384.4,3.2078]
[1735520726097,0.5762,3385.1,3384.4,3.2078]
[1735520726299,0.296,3385.0,3384.7,0.29602]
[1735520726597,0.29601,3384.9,3384.4,3.2078]
[1735520726788,0.296,3385.0,3384.7,0.29601]
[1735520726989,3.2078,3385.2,3384.4,3.2078]
[1735520727199,0.29596,3385.4,3385.1,0.29598]
[1735520727392,8.8294,3385.8,3385.0,3.2078]
[1735520727589,0.29598,3385.1,3385.0,3.2078]
[1735520727994,0.29597,3385.2,3385.0,3.2078]
[1735520728192,0.29598,3385.1,3385.0,3.2078]
[1735520731399,0.73983,3385.7,3384.4,3.2078]
[1735520731400,3.2078,3385.2,3384.4,3.2078]
[1735520731598,0.29601,3384.8,3384.5,0.29603]
[1735520731900,0.296,3385.0,3384.7,0.29602]
[1735520732099,3.2078,3385.2,3384.4,3.2078]
[1735520732302,0.29595,3385.6,3385.2,0.29597]
[1735520732501,0.29595,3385.6,3385.3,0.29596]
[1735520732701,0.29597,3385.2,3385.1,0.6479]
[1735520732894,0.29598,3385.1,3385.0,3.2078]
[1735520733091,3.8294,3385.8,3385.0,3.50379]
[1735520733401,0.29597,3385.3,3385.0,3.50379]
[1735520733601,4.56922,3385.8,3385.0,3.50379]
[1735520734107,3.8294,3385.8,3385.3,0.29596]
[1735520734294,0.29597,3385.3,3385.1,0.6525]
[1735520734496,0.29593,3385.7,3385.1,0.6525]
[1735520734899,0.29597,3385.2,3385.1,0.6525]
[1735520735098,9.56922,3385.8,3385.0,3.2078]
[1735520735293,0.29602,3384.7,3384.6,3.2078]
[1735520735499,3.2078,3385.2,3384.6,3.2078]
[1735520736098,0.296,3385.0,3384.7,0.29602]
[1735520736298,0.29597,3385.3,3384.7,0.29602]
[1735520736505,2.38842929,3385.4,3384.8,0.29601]
[1735520736705,0.29599,3385.1,3384.6,3.2078]
[1735520736905,2.38842929,3385.4,3385.0,3.2078]
[1735520737103,3.2078,3385.6,3385.0,3.2078]
[1735520737104,0.29595,3385.5,3385.0,3.2078]
[1735520737401,3.2078,3385.6,3385.3,0.29596]
[1735520737402,3.50374,3385.6,3385.3,0.29596]
[1735520737921,3.2078,3386.1,3385.1,0.6165]
[1735520738111,3.2078,3386.1,3385.3,0.73992]
[1735520738413,3.2078,3386.1,3385.9,0.29591]
[1735520738597,3.2078,3386.1,3385.2,1.2724]
[1735520738598,3.2078,3386.1,3386.0,0.2959]
[1735520739008,3.2078,3386.1,3385.7,0.29593]
[1735520739009,3.5037,3386.1,3385.7,0.29593]
[1735520739401,3.2078,3386.1,3385.9,0.29591]
[1735520741004,3.5037,3386.1,3385.8,0.29591]
[1735520741403,3.5037,3386.1,3385.9,0.29591]
[1735520741612,3.2078,3386.1,3385.9,0.29591]
[1735520742708,3.2078,3386.1,3385.6,3.2078]
[1735520742908,3.2078,3386.1,3385.9,0.29591]
[1735520743203,3.5037,3386.1,3385.8,0.29592]
[1735520743408,3.5037,3386.1,3385.9,0.29591]
[1735520743706,3.2078,3386.1,3385.9,0.29591]
[1735520744108,3.2078,3386.1,3385.6,3.2078]
[1735520744309,3.5037,3386.1,3385.9,0.29591]
[1735520745313,3.5037,3386.1,3385.7,0.29593]
[1735520745508,3.5037,3386.1,3385.8,0.29591]
[1735520745707,3.2078,3386.6,3385.6,3.2078]
[1735520745923,5.53093312,3387.2,3386.0,3.2078]
[1735520746106,5.23513312,3387.2,3386.5,3.2078]
[1735520746413,5.53094312,3387.2,3386.9,0.29582]
[1735520747212,0.29581,3387.1,3386.8,0.29583]
[1735520747405,0.29584,3386.8,3386.5,3.50366]
[1735520747810,0.29583,3386.9,3386.6,0.29585]
[1735520748210,0.29583,3386.9,3386.5,3.2078]
[1735520748409,0.6106,3387.2,3386.5,3.2078]
[1735520748614,0.29582,3387.0,3386.7,0.29584]
[1735520748814,0.6106,3387.2,3386.5,3.2078]
[1735520749026,0.6106,3387.2,3387.0,0.29581]
[1735520749904,0.6106,3387.2,3386.5,3.2078]
[1735520750107,0.6564,3387.7,3387.0,3.2078]
[1735520750316,0.29578,3387.5,3387.2,0.2958]
[1735520750511,0.29578,3387.5,3387.0,3.2078]
[1735520750814,0.29577,3387.6,3387.2,0.29579]
[1735520751111,0.29577,3387.6,3387.2,0.2958]
[1735520751813,0.6564,3387.7,3387.0,3.2078]
[1735520752019,0.29578,3387.5,3387.1,0.2958]
[1735520752217,0.29578,3387.5,3387.2,0.2958]
[1735520752815,0.2958,3387.3,3387.0,3.50361]
[1735520753014,0.2958,3387.3,3387.1,0.29581]
[1735520753409,0.6564,3387.7,3387.0,3.2078]
[1735520753609,0.29578,3387.4,3387.1,0.29581]
[1735520754103,0.29579,3387.3,3387.1,0.29581]
[1735520755416,0.29579,3387.4,3387.1,0.29581]
[1735520756919,0.6564,3387.7,3387.1,0.29581]
[1735520757116,0.2958,3387.3,3387.0,3.2078]
[1735520757321,0.2958,3387.3,3387.1,0.29581]
[1735520758514,0.6564,3387.7,3387.0,3.2078]
[1735520758815,0.29579,3387.3,3387.0,3.50361]
[1735520759315,1.03518,3387.6,3387.0,3.2078]
[1735520759519,0.6564,3387.7,3387.0,3.50362]
[1735520759815,0.29578,3387.5,3387.2,0.2958]
[1735520760019,0.29578,3387.4,3387.2,0.2958]
[1735520760507,0.6564,3387.7,3387.0,3.2078]
[1735520760709,0.29578,3387.5,3387.2,0.29579]
[1735520761412,0.6247,3388.0,3387.4,3.2078]
[1735520761613,6.49440018,3388.4,3387.8,3.2078]
[1735520761811,3.8136,3388.4,3387.9,0.91093]
[1735520762114,4.1093,3388.4,3388.0,0.29572]
[1735520762306,4.1093,3388.4,3388.1,0.29572]
[1735520764316,3.5035,3388.4,3388.1,0.29572]
[1735520766323,2.38510018,3388.2,3387.8,3.2078]
[1735520766520,0.29574,3388.0,3387.7,0.29575]
[1735520766726,0.29574,3387.9,3387.6,0.29576]
[1735520767728,0.29575,3387.8,3387.4,0.6418]
[1735520768025,2.38510018,3387.9,3387.4,0.6418]
[1735520768224,0.29576,3387.7,3387.4,0.93758]
[1735520768423,2.38510018,3388.2,3387.4,0.6418]
[1735520768825,2.38510018,3388.2,3387.5,0.29577]
[1735520768826,0.29575,3387.8,3387.5,0.29577]
[1735520769025,2.38510018,3388.2,3387.4,0.6418]
[1735520769325,0.29574,3388.0,3387.7,0.29575]
[1735520769920,0.29574,3388.0,3387.4,0.6418]
[1735520769921,0.6137,3388.3,3387.4,0.6418]
[1735520770125,3.8458,3388.9,3388.2,3.2078]
[1735520770331,3.2078,3388.9,3388.8,0.29566]
[1735520770623,3.2078,3388.9,3388.4,0.2957]
[1735520770833,3.2078,3388.9,3388.7,0.29566]
[1735520771123,3.2078,3388.9,3388.8,0.29566]
[1735520772234,0.2956,3389.6,3389.3,0.29561]
[1735520772422,3.2078,3389.8,3389.3,0.29561]
[1735520772632,0.29559,3389.6,3389.3,0.29561]
[1735520772817,3.2078,3390.2,3389.4,3.2078]
[1735520773015,3.2078,3390.2,3389.4,3.5034]
[1735520773016,0.29557,3389.8,3389.4,3.5034]
[1735520773628,2.38510018,3390.0,3389.4,3.5034]
[1735520773824,0.29559,3389.6,3389.4,3.2078]
[1735520774328,0.29559,3389.6,3389.2,0.6339]
[1735520774727,0.29559,3389.6,3389.2,0.92952]
[1735520775127,3.2078,3389.7,3389.2,0.6339]
[1735520775331,2.38510018,3390.0,3389.5,0.2956]
[1735520775529,0.29556,3389.9,3389.4,0.2956]
[1735520775729,0.29557,3389.8,3389.4,0.2956]
[1735520775931,0.29557,3389.9,3389.5,0.2956]
[1735520776121,3.2078,3390.1,3389.3,3.2078]
[1735520776320,3.2078,3390.1,3389.4,0.6564]
[1735520776523,3.2078,3390.1,3389.6,0.29559]
[1735520776524,0.29556,3390.0,3389.6,0.29559]
[1735520776722,0.29559,3389.6,3389.3,3.50341]
[1735520777032,0.29557,3389.9,3389.5,0.2956]
[1735520777329,3.2078,3390.1,3389.9,0.29556]
[1735520777825,3.2078,3390.1,3389.8,0.29557]
[1735520778025,3.2078,3390.1,3389.3,3.94685]
[1735520778331,3.50335,3390.1,3389.7,0.29558]
[1735520778531,3.2078,3390.1,3389.3,3.2078]
[1735520778730,0.29556,3390.0,3389.6,0.29559]
[1735520779525,0.29556,3390.0,3389.7,0.29558]
[1735520779837,3.50335,3390.1,3389.3,3.2078]
[1735520780022,3.64910018,3390.3,3389.3,3.2078]
[1735520780224,6.67419403,3390.9,3390.1,3.2078]
[1735520780530,1.2155,3390.8,3390.1,3.2078]
[1735520780829,0.2955,3390.7,3390.3,0.29552]
[1735520781036,1.51099,3390.8,3390.3,0.29552]
[1735520781334,1.51099,3390.8,3390.2,0.6416]
[1735520781335,3.46639403,3390.9,3390.7,3.2078]
[1735520781528,3.46639403,3390.9,3390.8,0.29549]
[1735520781729,3.46639403,3390.9,3390.7,3.50329]
[1735520782026,2.38510018,3391.4,3390.8,0.29549]
[1735520782245,2.38510018,3391.4,3390.7,3.50329]
[1735520782629,2.38510018,3391.4,3390.7,3.2078]
[1735520783038,0.29544,3391.3,3390.8,0.29548]
[1735520783339,0.29546,3391.1,3390.7,3.2078]
[1735520783531,0.29548,3390.9,3390.7,3.2078]
[1735520783731,2.38510018,3391.1,3390.7,3.2078]
[1735520783732,0.29549,3390.8,3390.7,3.2078]
[1735520783932,0.29549,3390.8,3390.2,0.6416]
[1735520783933,0.29549,3390.7,3390.2,0.6416]
[1735520784127,0.29551,3390.6,3390.2,0.6416]
[1735520784531,0.2955,3390.6,3390.2,0.6416]
[1735520784737,0.29551,3390.6,3390.1,3.2078]
[1735520784935,0.29552,3390.5,3390.1,3.2078]
[1735520785133,0.6041,3390.7,3390.1,3.2078]
[1735520785438,0.29551,3390.6,3390.1,3.50334]
[1735520785939,0.29552,3390.5,3390.1,3.50335]
[1735520786332,0.6041,3390.7,3390.1,3.2078]
[1735520786638,0.29554,3390.2,3390.1,3.2078]
[1735520787033,0.29559,3389.7,3389.3,4.15111]
[1735520787441,0.29561,3389.4,3389.3,3.2078]
[1735520787640,0.29562,3389.3,3388.9,4.11425]
[1735520788132,0.2956,3389.5,3389.1,0.29563]
[1735520788331,0.6204,3389.7,3388.9,3.8186]
[1735520789036,0.29562,3389.3,3388.9,3.8186]
[1735520789232,0.29564,3389.1,3388.9,3.8186]
[1735520789438,2.38510018,3389.3,3388.9,3.2078]
[1735520789635,0.29563,3389.2,3388.9,3.2078]
[1735520790238,2.38510018,3389.6,3388.9,3.2078]
[1735520790439,2.38510018,3389.3,3388.9,3.2078]
[1735520790740,0.29564,3389.0,3388.9,3.2078]
[1735520791340,0.29564,3389.0,3388.5,0.29568]
[1735520791734,0.6032,3389.2,3388.3,3.2078]
[1735520792039,0.29564,3389.1,3388.6,0.29568]
[1735520792229,0.6032,3389.2,3388.4,0.6469]
[1735520792433,3.2078,3389.4,3388.8,3.2078]
[1735520792746,3.2078,3389.4,3389.2,0.29562]
[1735520793041,3.2078,3389.4,3388.9,0.29565]
[1735520793235,3.2078,3389.4,3388.8,3.2078]
[1735520793436,3.2078,3389.4,3389.1,0.29563]
[1735520793635,3.2078,3389.4,3388.8,3.2078]
[1735520793840,3.2078,3389.4,3389.2,0.29562]
[1735520794340,3.2078,3389.4,3389.1,0.29563]
[1735520794938,3.2078,3389.4,3389.2,0.29563]
[1735520795145,3.2078,3389.4,3389.1,0.29563]
[1735520795739,3.8113,3390.0,3389.2,5.59290018]
[1735520796041,0.93351,3390.6,3389.9,3.2078]
[1735520796347,3.2078,3390.7,3390.0,41.4179]
[1735520796537,0.29553,3390.4,3390.0,41.71345]
[1735520797036,3.2078,3390.7,3390.0,41.71345]
[1735520797339,0.29552,3390.5,3390.1,0.29555]
[1735520797743,0.29552,3390.5,3390.0,0.91345]
[1735520797941,3.2078,3390.7,3390.0,0.6179]
[1735520798244,3.2078,3390.7,3389.9,3.2078]
[1735520798444,0.29553,3390.3,3389.9,3.2078]
[1735520798646,0.29553,3390.3,3389.9,3.50336]
[1735520798942,0.29553,3390.3,3389.9,44.00598015]
[1735520799140,3.2078,3390.7,3389.9,3.20598015]
[1735520799442,0.29553,3390.3,3389.9,3.50154015]
[1735520799944,0.29553,3390.3,3389.9,3.20598015]
[1735520801448,3.2078,3390.7,3389.9,3.20598015]
[1735520801449,0.29556,3390.0,3389.9,3.20598015]
[1735520801742,0.29559,3389.6,3389.3,0.6276]
[1735520802338,0.29559,3389.7,3389.3,0.6276]
[1735520802536,0.29559,3389.6,3389.3,0.6276]
[1735520802739,0.2956,3389.5,3389.1,0.29563]
[1735520802938,0.2956,3389.6,3389.2,0.29562]
[1735520803644,0.651,3390.1,3389.6,0.29559]
[1735520803841,0.29556,3390.0,3389.6,0.29559]
[1735520804043,0.651,3390.1,3389.4,3.2078]
[1735520804544,0.651,3390.1,3389.1,41.09563]
[1735520804545,0.2956,3389.5,3389.1,41.09563]
[1735520804736,0.2956,3389.5,3389.1,0.29563]
[1735520804942,0.29559,3389.6,3389.2,0.29563]
[1735520805445,3.2078,3389.9,3389.3,3.2078]
[1735520805641,0.29559,3389.6,3389.3,3.2078]
[1735520805947,3.2078,3389.9,3389.3,3.2078]
[1735520806246,0.2956,3389.6,3389.3,3.2078]
[1735520807048,0.29559,3389.6,3389.3,3.2078]
[1735520807254,0.29559,3389.6,3389.3,3.50342]
[1735520808245,0.29559,3389.6,3389.3,3.2078]
[1735520808647,0.2956,3389.5,3389.3,3.2078]
[1735520808849,0.29559,3389.6,3389.3,3.2078]
[1735520809451,0.29559,3389.6,3389.2,0.29562]
[1735520810352,3.2078,3389.9,3389.0,1.35301]
[1735520810653,3.50337,3389.9,3389.5,0.29559]
[1735520811252,3.50337,3389.9,3389.0,1.35301]
[1735520811253,3.2078,3389.9,3389.0,0.6139]